bitfinex/quotes_BTCUSD_20241002
["timestamp","ask_amount","ask_price","bid_price","bid_amount"]
[1727829180345,0.02745041,61160.0,61159.0,0.014]
[1727829180577,0.02745041,61160.0,61153.0,0.002]
[1727829180578,0.02645041,61160.0,61153.0,0.002]
[1727829180792,0.130807,61159.0,61154.0,0.130816]
[1727829181255,0.130809,61158.0,61153.0,0.132818]
[1727829181488,0.15725441,61160.0,61159.0,0.001]
[1727829182939,0.02645041,61160.0,61155.0,0.130813]
[1727829183174,0.131807,61159.0,61156.0,0.002]
[1727829183404,0.00172915,61159.0,61152.0,0.002]
[1727829183641,0.261622,61157.0,61151.0,0.002]
[1727829183883,0.130816,61155.0,61152.0,0.002]
[1727829184142,0.02645041,61160.0,61153.0,0.24533255]
[1727829184369,0.131807,61159.0,61156.0,0.008]
[1727829184612,0.21671688,61160.0,61156.0,0.132812]
[1727829184844,0.21671688,61160.0,61155.0,0.003]
[1727829184845,0.130806,61159.0,61155.0,0.005]
[1727829185105,0.130806,61159.0,61155.0,0.135814]
[1727829185560,0.02645041,61160.0,61156.0,0.261623]
[1727829185823,0.02645041,61160.0,61159.0,0.208906]
[1727829186063,0.000818,61160.0,61159.0,0.208906]
[1727829186940,0.000818,61160.0,61159.0,0.211906]
[1727829187379,0.001818,61160.0,61159.0,0.221906]
[1727829187910,0.002818,61160.0,61159.0,0.59033455]
[1727829188151,0.002818,61160.0,61159.0,0.155806]
[1727829188372,0.002818,61160.0,61159.0,0.025]
[1727829188623,0.002818,61160.0,61159.0,0.155806]
[1727829188851,0.002818,61160.0,61159.0,0.025]
[1727829189093,0.02844808,61160.0,61159.0,0.027]
[1727829189345,0.02844808,61160.0,61159.0,0.157806]
[1727829192412,0.02844808,61160.0,61159.0,0.155806]
[1727829192644,0.02844808,61160.0,61159.0,0.157806]
[1727829193140,0.02844808,61160.0,61159.0,0.025]
[1727829193374,0.02844808,61160.0,61159.0,0.155806]
[1727829193607,0.02844808,61160.0,61159.0,0.157806]
[1727829194067,0.02144808,61160.0,61159.0,0.132806]
[1727829194295,0.02244808,61160.0,61159.0,0.141806]
[1727829195271,0.02344808,61160.0,61159.0,0.148806]
[1727829195527,0.002,61160.0,61159.0,0.148806]
[1727829198583,0.02762942,61160.0,61159.0,0.148806]
[1727829200477,0.02762942,61160.0,61159.0,0.146806]
[1727829200705,0.02762942,61160.0,61159.0,0.148442]
[1727829200895,0.02844742,61160.0,61159.0,0.148442]
[1727829201395,0.245981,61160.0,61159.0,0.017636]
[1727829201681,0.22004101,61160.0,61159.0,0.017636]
[1727829201910,0.19441159,61160.0,61159.0,0.017636]
[1727829202129,0.002818,61160.0,61159.0,0.017636]
[1727829202376,0.002818,61160.0,61159.0,0.010636]
[1727829202377,0.001818,61160.0,61159.0,0.010636]
[1727829202605,0.000818,61160.0,61159.0,0.001636]
[1727829202835,0.000818,61160.0,61159.0,0.006636]
[1727829203181,0.000818,61160.0,61159.0,0.011636]
[1727829203398,0.000818,61160.0,61159.0,0.215242]
[1727829203648,0.002818,61160.0,61159.0,0.015636]
[1727829203878,0.02844713,61160.0,61159.0,0.015636]
[1727829204112,0.25802942,61160.0,61159.0,0.015636]
[1727829204368,0.25802942,61160.0,61159.0,0.007636]
[1727829204369,0.25702942,61160.0,61159.0,0.007636]
[1727829205040,0.21631157,61160.0,61159.0,0.001636]
[1727829205292,0.21731157,61160.0,61159.0,0.015636]
[1727829205520,0.21731157,61160.0,61159.0,0.146442]
[1727829205521,0.02744713,61160.0,61159.0,0.146442]
[1727829205767,0.02744713,61160.0,61159.0,0.141442]
[1727829205993,0.02844713,61160.0,61159.0,0.148442]
[1727829206214,0.002818,61160.0,61159.0,0.148442]
[1727829206442,0.001818,61160.0,61159.0,0.132442]
[1727829206676,0.000818,61160.0,61159.0,0.132442]
[1727829206899,0.002818,61160.0,61159.0,0.148442]
[1727829207125,0.001818,61160.0,61159.0,0.142442]
[1727829207356,0.002818,61160.0,61159.0,0.154442]
[1727829207585,0.002818,61160.0,61159.0,0.152442]
[1727829207821,0.002818,61160.0,61159.0,0.39793645]
[1727829208087,0.002818,61160.0,61159.0,0.58967055]
[1727829208317,0.002818,61160.0,61159.0,0.39793645]
[1727829208545,0.001818,61160.0,61159.0,0.38993645]
[1727829208778,0.000818,61160.0,61159.0,0.37993645]
[1727829209009,0.002818,61160.0,61159.0,0.243242]
[1727829209246,0.02844609,61160.0,61159.0,0.243242]
[1727829209485,0.02744609,61160.0,61159.0,0.229242]
[1727829209721,0.02844609,61160.0,61159.0,0.240242]
[1727829209955,0.02744609,61160.0,61159.0,0.226242]
[1727829210193,0.02844609,61160.0,61159.0,0.238242]
[1727829210423,0.02844609,61160.0,61159.0,0.226242]
[1727829210682,0.02944609,61160.0,61159.0,0.239242]
[1727829211197,0.02844609,61160.0,61159.0,0.49293645]
[1727829211421,0.02944609,61160.0,61159.0,0.50493645]
[1727829211908,0.02844609,61160.0,61159.0,0.49293645]
[1727829212135,0.02644609,61160.0,61159.0,0.47993645]
[1727829212366,0.02744609,61160.0,61159.0,0.50693645]
[1727829212608,0.02744609,61160.0,61159.0,0.49293645]
[1727829212843,0.02644609,61160.0,61159.0,0.5672548]
[1727829213071,0.02644609,61160.0,61159.0,0.82189387]
[1727829213320,0.02644609,61160.0,61159.0,0.82186615]
[1727829213571,0.02644609,61160.0,61159.0,0.81837552]
[1727829213572,0.02744609,61160.0,61159.0,0.81837552]
[1727829213818,0.02744609,61160.0,61159.0,0.99539636]
[1727829214043,0.000817,61169.0,61168.0,0.6381211]
[1727829214271,0.000817,61169.0,61168.0,1.15505168]
[1727829214512,0.000817,61169.0,61168.0,1.17944772]
[1727829215047,0.000818,61176.0,61175.0,0.002]
[1727829215288,0.049983,61181.0,61178.0,0.4802891]
[1727829215521,0.24533255,61182.0,61178.0,1.05201969]
[1727829215783,0.24533255,61189.0,61178.0,1.03874728]
[1727829216018,0.24533255,61189.0,61178.0,1.13621045]
[1727829216255,0.24533255,61189.0,61178.0,0.77998181]
[1727829216495,0.24533255,61189.0,61178.0,0.83280647]
[1727829216720,0.0012,61179.0,61178.0,0.75928355]
[1727829216943,0.0012,61179.0,61178.0,0.81833095]
[1727829217170,0.0012,61179.0,61178.0,1.12243114]
[1727829217396,0.0012,61179.0,61178.0,0.84677684]
[1727829217619,0.0012,61179.0,61178.0,0.94171985]
[1727829217845,0.0012,61179.0,61178.0,0.93971985]
[1727829218073,0.0012,61179.0,61178.0,0.83822656]
[1727829218350,0.0012,61179.0,61178.0,0.85222656]
[1727829218832,0.0012,61179.0,61178.0,0.85422656]
[1727829220244,0.0012,61179.0,61178.0,0.50475945]
[1727829221413,0.0002,61179.0,61178.0,0.49075945]
[1727829221632,0.0012,61179.0,61178.0,0.49075945]
[1727829221869,0.0012,61179.0,61178.0,0.50475945]
[1727829222363,0.0012,61179.0,61178.0,0.722092]
[1727829222364,0.0002,61179.0,61178.0,0.722092]
[1727829222593,0.02681815,61179.0,61178.0,0.50475945]
[1727829223992,0.02581815,61179.0,61178.0,0.49075945]
[1727829224230,0.0002,61179.0,61178.0,0.51375945]
[1727829224467,0.0012,61179.0,61178.0,0.52775945]
[1727829224931,0.002018,61179.0,61178.0,0.52775945]
[1727829226096,0.002018,61179.0,61178.0,0.52975945]
[1727829226362,0.002018,61179.0,61178.0,0.52775945]
[1727829226826,0.002018,61179.0,61178.0,0.780092]
[1727829227055,0.000818,61187.0,61186.0,0.51942511]
[1727829227056,0.24615055,61187.0,61186.0,0.51942511]
[1727829227306,0.24615055,61187.0,61186.0,0.68411956]
[1727829227525,0.000818,61187.0,61186.0,0.68411956]
[1727829228007,0.000818,61187.0,61186.0,0.68211956]
[1727829228240,0.001818,61187.0,61186.0,0.97531709]
[1727829228474,0.001818,61187.0,61186.0,0.92660956]
[1727829228698,0.001818,61187.0,61186.0,0.94060956]
[1727829229174,0.001818,61187.0,61186.0,0.92660956]
[1727829229175,0.000818,61187.0,61186.0,0.92660956]
[1727829229656,0.000818,61187.0,61186.0,0.96131709]
[1727829229888,0.000818,61187.0,61186.0,0.97531709]
[1727829230630,0.000818,61187.0,61186.0,0.98931709]
[1727829231583,0.000818,61187.0,61186.0,0.94060956]
[1727829234450,0.000818,61187.0,61186.0,0.54033245]
[1727829234917,0.000818,61187.0,61186.0,0.54452718]
[1727829235183,0.000818,61187.0,61186.0,0.51173718]
[1727829235667,0.000818,61187.0,61186.0,0.54452718]
[1727829236119,0.000818,61187.0,61186.0,0.51173718]
[1727829237092,0.000818,61187.0,61186.0,0.028]
[1727829237319,0.131564,61187.0,61186.0,0.028]
[1727829238013,0.000818,61187.0,61182.0,0.24733255]
[1727829238237,0.2615,61186.0,61185.0,0.002]
[1727829238506,0.130748,61186.0,61185.0,0.002]
[1727829238782,0.02643694,61187.0,61186.0,0.130748]
[1727829239040,0.02643694,61187.0,61186.0,0.13901654]
[1727829239255,0.02643694,61187.0,61186.0,0.3007108]
[1727829240195,0.02643694,61187.0,61186.0,0.43550052]
[1727829240408,0.02643694,61187.0,61186.0,0.39944245]
[1727829240652,0.02643694,61187.0,61186.0,0.39744245]
[1727829240867,0.02643694,61187.0,61186.0,0.31144245]
[1727829241148,0.02643694,61187.0,61186.0,0.41144245]
[1727829241450,0.02643694,61187.0,61186.0,0.43723245]
[1727829241714,0.02643694,61187.0,61186.0,0.44123245]
[1727829242172,0.02643694,61187.0,61186.0,0.45523245]
[1727829242173,0.000818,61187.0,61186.0,0.45523245]
[1727829242395,0.000818,61187.0,61186.0,0.44123245]
[1727829242934,0.000818,61187.0,61186.0,0.45523245]
[1727829243404,0.000818,61187.0,61186.0,0.44423245]
[1727829243652,0.000818,61187.0,61186.0,0.45723245]
[1727829244833,0.000818,61187.0,61186.0,0.44423245]
[1727829245065,0.000818,61187.0,61186.0,0.45823245]
[1727829246073,0.000818,61187.0,61186.0,0.03]
[1727829246333,0.131564,61187.0,61186.0,0.028]
[1727829246814,0.37564619,61187.0,61186.0,0.014]
[1727829247048,0.37564619,61187.0,61180.0,0.001636]
[1727829247049,0.130759,61181.0,61180.0,0.001636]
[1727829247320,0.0965,61180.0,61167.0,0.002]
[1727829247560,0.130783,61170.0,61162.0,0.24533255]
[1727829247798,0.130783,61170.0,61162.0,0.24733255]
[1727829248029,0.130793,61165.0,61164.0,0.002]
[1727829248513,0.130793,61165.0,61162.0,0.24733255]
[1727829248746,0.130793,61165.0,61162.0,0.002]
[1727829249003,0.130793,61165.0,61164.0,0.002]
[1727829249246,0.15642091,61165.0,61164.0,0.002]
[1727829249469,0.15642091,61165.0,61164.0,0.009]
[1727829249704,0.02562791,61165.0,61164.0,0.009]
[1727829250634,0.02562791,61165.0,61164.0,0.016]
[1727829250853,0.15642091,61165.0,61164.0,0.016]
[1727829251079,0.15642091,61165.0,61164.0,0.009]
[1727829251341,0.23354595,61165.0,61164.0,0.007]
[1727829251595,0.25292091,61165.0,61164.0,0.007]
[1727829251849,0.02562791,61165.0,61164.0,0.007]
[1727829252074,0.02662791,61165.0,61164.0,0.144795]
[1727829252789,0.02662791,61165.0,61164.0,0.137795]
[1727829253028,0.02562791,61165.0,61164.0,0.137795]
[1727829253277,0.02562791,61165.0,61164.0,0.139795]
[1727829253516,0.02562791,61165.0,61164.0,0.232795]
[1727829254186,0.02562791,61165.0,61164.0,0.015]
[1727829254189,0.15642091,61165.0,61164.0,0.015]
[1727829254411,0.02662791,61165.0,61164.0,0.140795]
[1727829254648,0.02562791,61165.0,61164.0,0.132795]
[1727829254881,0.02662791,61165.0,61164.0,0.140795]
[1727829255332,0.02662791,61165.0,61164.0,0.01]
[1727829255781,0.02562791,61165.0,61164.0,0.132795]
[1727829256013,0.02662791,61165.0,61164.0,0.136795]
[1727829256253,0.02662791,61165.0,61164.0,0.150795]
[1727829256483,0.001,61165.0,61164.0,0.150795]
[1727829256749,0.001,61165.0,61164.0,0.136795]
[1727829256986,0.001,61165.0,61164.0,0.150795]
[1727829257470,0.24533255,61171.0,61166.0,0.13079]
[1727829257722,0.24533255,61171.0,61165.0,0.261587]
[1727829257723,0.24533255,61171.0,61168.0,0.002]
[1727829258215,0.130777,61173.0,61168.0,0.002]
[1727829258454,0.130779,61172.0,61168.0,0.002]
[1727829258692,0.261551,61174.0,61169.0,0.002]
[1727829258693,0.001,61171.0,61169.0,0.002]
[1727829259171,0.001,61171.0,61170.0,0.002]
[1727829259445,0.02762556,61171.0,61170.0,0.002]
[1727829260361,0.02762556,61171.0,61170.0,0.012]
[1727829260608,0.02762556,61171.0,61170.0,0.142783]
[1727829260824,0.02562556,61171.0,61170.0,0.142783]
[1727829262425,0.02662556,61171.0,61170.0,0.150783]
[1727829265054,0.02662556,61171.0,61170.0,0.250783]
[1727829269481,0.02662556,61171.0,61170.0,0.248783]
[1727829269718,0.02662556,61171.0,61170.0,0.250783]
[1727829269948,0.02662556,61171.0,61170.0,0.018]
[1727829270189,0.15740556,61171.0,61170.0,0.018]
[1727829270672,0.02662556,61171.0,61170.0,0.018]
[1727829270892,0.02662556,61171.0,61170.0,0.150783]
[1727829271904,0.001,61171.0,61170.0,0.150783]
[1727829272158,0.001,61171.0,61170.0,0.15405219]
[1727829272419,0.001,61171.0,61170.0,0.41874664]
[1727829272420,0.02662416,61171.0,61170.0,0.41874664]
[1727829272673,0.02662416,61171.0,61170.0,0.41547745]
[1727829273601,0.02662416,61171.0,61170.0,0.44826745]
[1727829274061,0.02562416,61171.0,61170.0,0.44026745]
[1727829274270,0.02562416,61171.0,61170.0,0.43026745]
[1727829274524,0.02662416,61171.0,61170.0,0.45226745]
[1727829274991,0.02762416,61171.0,61170.0,0.44826745]
[1727829275221,0.02762416,61171.0,61170.0,0.46226745]
[1727829275682,0.02762416,61171.0,61170.0,0.65148933]
[1727829276406,0.02762416,61171.0,61170.0,0.262783]
[1727829277334,0.02562416,61171.0,61170.0,0.232783]
[1727829277567,0.02562416,61171.0,61170.0,0.260783]
[1727829277838,0.15640416,61171.0,61170.0,0.028]
[1727829278045,0.15640416,61171.0,61170.0,0.014]
[1727829278274,0.15640416,61171.0,61170.0,0.016]
[1727829278500,0.15640416,61171.0,61170.0,0.028]
[1727829278968,0.02562416,61171.0,61168.0,0.132422]
[1727829279183,0.02562416,61171.0,61170.0,0.002]
[1727829279405,0.15640416,61171.0,61170.0,0.002]
[1727829279938,0.02562416,61171.0,61170.0,0.004]
[1727829280372,0.02562416,61171.0,61168.0,0.001636]
[1727829280373,0.15640416,61171.0,61168.0,0.001636]
[1727829280820,0.15640416,61171.0,61170.0,0.004]
[1727829281320,0.23416899,61171.0,61170.0,0.002]
[1727829281545,0.46918844,61171.0,61170.0,0.002]
[1727829281788,0.46918844,61171.0,61168.0,0.003636]
[1727829281789,0.130785,61169.0,61168.0,0.003636]
[1727829282003,0.19037171,61169.0,61168.0,0.003636]
[1727829282242,0.31586728,61169.0,61168.0,0.001636]
[1727829282490,0.48983813,61169.0,61168.0,0.001636]
[1727829283457,0.49083813,61169.0,61168.0,0.001636]
[1727829283664,0.48983813,61169.0,61168.0,0.001636]
[1727829284098,0.49883813,61169.0,61168.0,0.002636]
[1727829284545,0.50083813,61169.0,61168.0,0.003636]
[1727829285920,0.50083813,61169.0,61164.0,0.001636]
[1727829285921,0.130793,61165.0,61164.0,0.001636]
[1727829286216,0.28401428,61165.0,61164.0,0.001636]
[1727829286458,0.30701428,61165.0,61164.0,0.001636]
[1727829287152,0.30801428,61165.0,61164.0,0.001636]
[1727829287404,0.31301428,61165.0,61164.0,0.001636]
[1727829287662,0.45462152,61165.0,61164.0,0.001636]
[1727829287897,0.47852507,61165.0,61164.0,0.001636]
[1727829288136,0.31391783,61165.0,61164.0,0.001636]
[1727829289692,0.31291783,61165.0,61164.0,0.001636]
[1727829289940,0.0286327,61165.0,61164.0,0.001636]
[1727829290183,0.1624257,61165.0,61164.0,0.001636]
[1727829290403,0.16115485,61165.0,61164.0,0.001636]
[1727829290859,0.16015485,61165.0,61164.0,0.001636]
[1727829291322,0.15815485,61165.0,61164.0,0.002636]
[1727829291557,0.1564257,61165.0,61164.0,0.004636]
[1727829292963,0.0256327,61165.0,61164.0,0.004636]
[1727829293188,0.1564257,61165.0,61164.0,0.004636]
[1727829293893,0.0256327,61165.0,61164.0,0.004636]
[1727829294131,0.0256327,61165.0,61164.0,0.135431]
[1727829294377,0.24533255,61171.0,61164.0,0.084636]
[1727829294598,0.24533255,61171.0,61170.0,0.002]
[1727829295123,0.13078,61171.0,61170.0,0.002]
[1727829295601,0.00172915,61173.0,61172.0,0.002]
[1727829295837,0.130778,61172.0,61171.0,0.002]
[1727829296306,0.000818,61174.0,61172.0,0.130778]
[1727829296529,0.000818,61174.0,61171.0,0.002]
[1727829296758,0.131592,61174.0,61171.0,0.130779]
[1727829296996,0.000818,61174.0,61168.0,0.261571]
[1727829297231,0.000818,61174.0,61168.0,0.392357]
[1727829297232,0.130776,61173.0,61168.0,0.392357]
[1727829297468,0.130776,61173.0,61172.0,0.001]
[1727829297469,0.16340097,61173.0,61172.0,0.001]
[1727829297697,0.130781,61171.0,61165.0,0.261583]
[1727829297944,0.28718097,61173.0,61165.0,0.261583]
[1727829298169,0.130778,61172.0,61167.0,0.130787]
[1727829298396,0.130778,61172.0,61166.0,0.261581]
[1727829298397,0.130783,61170.0,61166.0,0.130791]
[1727829298665,0.130779,61172.0,61165.0,0.261583]
[1727829298919,0.130779,61172.0,61168.0,0.130786]
[1727829299152,0.15640197,61173.0,61171.0,0.007]
[1727829299386,0.02562497,61173.0,61169.0,0.130783]
[1727829299616,0.130781,61171.0,61167.0,0.130789]
[1727829299846,0.001,61170.0,61167.0,0.130789]
[1727829300075,0.130781,61171.0,61167.0,0.130789]
[1727829300366,0.02562497,61173.0,61166.0,0.261579]
[1727829300604,0.02662497,61173.0,61171.0,0.008]
[1727829300844,0.02662497,61173.0,61168.0,0.24533255]
[1727829300845,0.000818,61174.0,61172.0,0.24796348]
[1727829301087,0.000818,61174.0,61173.0,0.130776]
[1727829301321,0.000818,61174.0,61173.0,0.23404506]
[1727829301558,0.000818,61174.0,61173.0,0.39873951]
[1727829301801,0.000818,61174.0,61173.0,0.39547045]
[1727829302033,0.000818,61174.0,61173.0,0.39747045]
[1727829302270,0.000818,61174.0,61173.0,0.43026045]
[1727829302986,0.000818,61174.0,61173.0,0.42826045]
[1727829303240,0.000818,61174.0,61173.0,0.39547045]
[1727829303472,0.001818,61174.0,61173.0,0.44226045]
[1727829303692,0.001818,61174.0,61173.0,0.45626045]
[1727829304145,0.001818,61174.0,61173.0,0.44226045]
[1727829304637,0.000818,61174.0,61173.0,0.44226045]
[1727829305860,0.000818,61174.0,61173.0,0.42826045]
[1727829306093,0.000818,61174.0,61173.0,0.45626045]
[1727829306343,0.000818,61174.0,61173.0,0.52226045]
[1727829306584,0.000818,61174.0,61173.0,0.53826045]
[1727829307547,0.000818,61174.0,61173.0,0.56126045]
[1727829308730,0.000818,61174.0,61173.0,0.53626045]
[1727829311873,0.000818,61174.0,61173.0,0.53826045]
[1727829312318,0.000818,61174.0,61173.0,0.56126045]
[1727829318172,0.000818,61174.0,61173.0,0.53626045]
[1727829318881,0.131592,61174.0,61173.0,0.028]
[1727829319140,0.000818,61174.0,61173.0,0.028]
[1727829319378,0.000818,61174.0,61173.0,0.158776]
[1727829319632,0.02644012,61174.0,61173.0,0.158776]
[1727829319856,0.02644012,61174.0,61173.0,0.130776]
[1727829320110,0.02644012,61174.0,61173.0,0.140776]
[1727829320357,0.02644012,61174.0,61173.0,0.149776]
[1727829320601,0.02644012,61174.0,61173.0,0.019]
[1727829320827,0.02644012,61174.0,61173.0,0.149776]
[1727829321514,0.02644012,61174.0,61173.0,0.019]
[1727829321739,0.000818,61174.0,61173.0,0.019]
[1727829321973,0.000818,61174.0,61173.0,0.020636]
[1727829323602,0.02644089,61174.0,61173.0,0.020636]
[1727829323955,0.02644089,61174.0,61173.0,0.151412]
[1727829324155,0.02644089,61174.0,61173.0,0.020636]
[1727829324851,0.000818,61174.0,61173.0,0.020636]
[1727829325087,0.28501247,61174.0,61173.0,0.020636]
[1727829325308,0.28501247,61174.0,61169.0,0.001636]
[1727829325309,0.15423847,61174.0,61169.0,0.001636]
[1727829325549,0.49791809,61170.0,61169.0,0.001636]
[1727829325779,0.57864202,61170.0,61169.0,0.001636]
[1727829325981,0.67535011,61170.0,61169.0,0.001636]
[1727829326210,0.36430693,61170.0,61169.0,0.001636]
[1727829326849,0.310583,61170.0,61169.0,0.001636]
[1727829327052,0.306583,61170.0,61169.0,0.001636]
[1727829327272,0.093,61170.0,61169.0,0.001636]
[1727829327480,0.223783,61170.0,61169.0,0.004636]
[1727829327931,0.02562625,61170.0,61169.0,0.135421]
[1727829328366,0.02762625,61170.0,61169.0,0.135421]
[1727829328792,0.02562625,61170.0,61169.0,0.29711545]
[1727829329291,0.02562625,61170.0,61169.0,0.30511545]
[1727829329510,0.02562625,61170.0,61169.0,0.30211545]
[1727829329720,0.02662625,61170.0,61169.0,0.41011545]
[1727829330184,0.02562625,61170.0,61169.0,0.40211545]
[1727829330409,0.02662625,61170.0,61169.0,0.41511545]
[1727829330634,0.02662625,61170.0,61169.0,0.41011545]
[1727829330849,0.02762625,61170.0,61169.0,0.42411545]
[1727829331307,0.02662625,61170.0,61169.0,0.41011545]
[1727829331743,0.001,61170.0,61169.0,0.40411545]
[1727829332192,0.002,61170.0,61169.0,0.41011545]
[1727829334856,0.027621,61170.0,61169.0,0.41011545]
[1727829335751,0.027621,61170.0,61169.0,0.48561545]
[1727829335968,0.027621,61170.0,61169.0,0.50861545]
[1727829336386,0.002,61170.0,61169.0,0.51061545]
[1727829336815,0.002,61170.0,61169.0,0.51561545]
[1727829337704,0.002,61170.0,61169.0,0.56422153]
[1727829338441,0.002,61170.0,61169.0,0.61035161]
[1727829338687,0.000819,61173.0,61172.0,0.137778]
[1727829338962,0.000819,61173.0,61172.0,0.97651791]
[1727829339967,0.000819,61173.0,61172.0,0.99051791]
[1727829341287,0.000819,61173.0,61172.0,0.76653985]
[1727829341523,0.000819,61173.0,61172.0,0.32347245]
[1727829342018,0.0233886,61173.0,61172.0,0.32347245]
[1727829342224,0.0233886,61173.0,61172.0,0.30947245]
[1727829342667,0.0233886,61173.0,61172.0,0.32247245]
[1727829342908,0.0233886,61173.0,61172.0,0.30947245]
[1727829343114,0.0233886,61173.0,61172.0,0.29547245]
[1727829343321,0.0233886,61173.0,61172.0,0.42347245]
[1727829344172,0.0233886,61173.0,61172.0,0.014]
[1727829344399,0.24719375,61173.0,61172.0,0.028]
[1727829345090,0.24719375,61173.0,61172.0,0.014]
[1727829345305,0.24819375,61173.0,61172.0,0.014]
[1727829345758,0.2454646,61173.0,61172.0,0.014]
[1727829345970,0.130783,61170.0,61169.0,0.01864846]
[1727829346195,0.13251215,61170.0,61169.0,0.001636]
[1727829346422,0.15477418,61170.0,61169.0,0.001636]
[1727829346950,0.15477418,61170.0,61169.0,0.003636]
[1727829347853,0.18040105,61170.0,61169.0,0.003636]
[1727829348063,0.1786719,61170.0,61169.0,0.003636]
[1727829348276,0.0478889,61170.0,61169.0,0.003636]
[1727829348484,0.0478889,61170.0,61169.0,0.134421]
[1727829348915,0.0478889,61170.0,61169.0,0.132421]
[1727829348916,0.02562687,61170.0,61169.0,0.132421]
[1727829349371,0.04881058,61170.0,61169.0,0.136421]
[1727829349851,0.04881058,61170.0,61169.0,0.132421]
[1727829349852,0.02662687,61170.0,61169.0,0.132421]
[1727829350063,0.02662687,61170.0,61169.0,0.141421]
[1727829350291,0.04881058,61170.0,61169.0,0.141421]
[1727829350542,0.02662687,61170.0,61169.0,0.141421]
[1727829350967,0.04881058,61170.0,61169.0,0.141421]
[1727829351177,0.04781058,61170.0,61169.0,0.141421]
[1727829351382,0.02562687,61170.0,61169.0,0.141421]
[1727829351582,0.04781058,61170.0,61169.0,0.148421]
[1727829351805,0.04781058,61170.0,61169.0,0.141421]
[1727829352445,0.02562687,61170.0,61169.0,0.66471747]
[1727829352657,0.02562687,61170.0,61169.0,0.41811545]
[1727829352883,0.02562687,61170.0,61169.0,0.41611545]
[1727829353124,0.00938457,61170.0,61169.0,0.41611545]
[1727829353330,0.000819,61173.0,61172.0,0.230778]
[1727829353553,0.000819,61173.0,61172.0,0.59207621]
[1727829353761,0.000819,61173.0,61172.0,0.58880754]
[1727829353972,0.000819,61173.0,61172.0,0.62159754]
[1727829354206,0.000819,61173.0,61172.0,0.61959754]
[1727829354440,0.000819,61173.0,61172.0,0.62159754]
[1727829354891,0.000819,61173.0,61172.0,0.63359754]
[1727829355327,0.000819,61173.0,61172.0,0.61959754]
[1727829355548,0.000819,61173.0,61172.0,0.63359754]
[1727829356186,0.000819,61173.0,61172.0,0.64759754]
[1727829357515,0.000819,61173.0,61172.0,0.45626245]
[1727829357741,0.000819,61173.0,61172.0,0.42347245]
[1727829357994,0.02309289,61173.0,61172.0,0.42347245]
[1727829358433,0.02309289,61173.0,61172.0,0.40947245]
[1727829358862,0.02309289,61173.0,61172.0,0.41647245]
[1727829359287,0.02309289,61173.0,61172.0,0.39547245]
[1727829359499,0.02309289,61173.0,61172.0,0.40447245]
[1727829360588,0.000819,61173.0,61172.0,0.40447245]
[1727829360820,0.000819,61173.0,61172.0,0.40947245]
[1727829361025,0.000819,61173.0,61172.0,0.40447245]
[1727829361249,0.000819,61173.0,61172.0,0.40547245]
[1727829361484,0.000819,61173.0,61172.0,0.45160253]
[1727829361712,0.000819,61173.0,61172.0,0.52076245]
[1727829361981,0.000819,61173.0,61172.0,0.52976245]
[1727829362212,0.000819,61173.0,61172.0,0.52776245]
[1727829362433,0.000819,61173.0,61172.0,0.51876245]
[1727829362649,0.000819,61173.0,61172.0,0.50876245]
[1727829362860,0.000819,61173.0,61172.0,0.52076245]
[1727829363092,0.000819,61173.0,61172.0,0.52498769]
[1727829363318,0.000819,61173.0,61172.0,0.51298769]
[1727829363981,0.000819,61173.0,61172.0,0.52698769]
[1727829364643,0.000819,61173.0,61172.0,0.54098769]
[1727829365540,0.000819,61173.0,61172.0,0.54298769]
[1727829365762,0.000819,61173.0,61172.0,0.61963642]
[1727829366676,0.000819,61173.0,61172.0,0.82095954]
[1727829366902,0.000818,61174.0,61173.0,0.170566]
[1727829367128,0.000818,61174.0,61173.0,0.7082323]
[1727829367353,0.000818,61174.0,61173.0,0.82976948]
[1727829367573,0.000818,61174.0,61173.0,0.80546466]
[1727829367783,0.000818,61174.0,61173.0,0.7032323]
[1727829368025,0.000818,61174.0,61173.0,0.53420917]
[1727829368234,0.000818,61174.0,61173.0,0.52020917]
[1727829368446,0.000818,61174.0,61173.0,0.50620917]
[1727829368679,0.000818,61174.0,61173.0,0.52020917]
[1727829368914,0.000818,61174.0,61173.0,0.53620917]
[1727829369133,0.000818,61174.0,61173.0,0.55720917]
[1727829369379,0.0494994,61182.0,61178.0,0.005]
[1727829369722,0.0494994,61182.0,61181.0,0.45688409]
[1727829369964,0.24533255,61203.0,61186.0,0.237748]
[1727829370220,0.24533255,61203.0,61195.0,0.42206409]
[1727829370487,0.24533255,61203.0,61195.0,0.67225854]
[1727829370747,0.24533255,61203.0,61195.0,0.753656]
[1727829371011,0.24533255,61203.0,61195.0,0.39542345]
[1727829371245,0.09302915,61202.0,61195.0,0.230729]
[1727829371498,0.0785,61208.0,61195.0,0.230729]
[1727829371499,0.0785,61208.0,61198.0,0.230723]
[1727829371754,0.24533255,61201.0,61198.0,0.230723]
[1727829372188,0.24533255,61208.0,61198.0,0.230723]
[1727829372413,0.02390407,61199.0,61198.0,0.39541745]
[1727829372656,0.001018,61199.0,61198.0,0.39541745]
[1727829372901,0.001018,61199.0,61198.0,0.40941745]
[1727829373889,0.001018,61199.0,61198.0,0.39541745]
[1727829374146,0.001018,61199.0,61198.0,0.40541745]
[1727829374411,0.001018,61199.0,61198.0,0.40741745]
[1727829374625,0.001018,61199.0,61198.0,0.41741745]
[1727829374888,0.001018,61199.0,61198.0,0.39541745]
[1727829375126,0.001018,61199.0,61198.0,0.40741745]
[1727829375338,0.001018,61199.0,61198.0,0.41841745]
[1727829375593,0.001018,61199.0,61198.0,0.40641745]
[1727829375834,0.00085104,61199.0,61198.0,0.41941745]
[1727829376508,0.00085104,61199.0,61198.0,0.40841745]
[1727829376944,0.00085104,61199.0,61198.0,0.42141745]
[1727829377249,0.00085104,61199.0,61198.0,0.43320745]
[1727829377463,0.00085104,61199.0,61198.0,0.50491365]
[1727829377685,0.00085104,61199.0,61198.0,0.46751357]
[1727829378185,0.00085104,61199.0,61198.0,0.43951357]
[1727829378421,0.00085104,61199.0,61198.0,0.45351357]